Cogmind - Beta 15 @@@ ROGUE MODE // 2025.05.09 @ 11:05:36 Player: L-470 Result: Self-destructed Performance ------------- Evolutions (1) 500 Regions Visited (3) 600 Robots Destroyed (23) 115 Value Destroyed (500) 500 Prototype IDs (0) 0 Alien Tech Used (0) 0 Bonus (0) 0 TOTAL SCORE: 1715 Bonus ------- None Cogmind --------- Core Integrity 319/400 Matter 245/300 Energy 100/100 System Corruption 0% Temperature Cool (0) Movement Core (150) Ox2 Location -9/Materials Parts ------- > --- POWER (1) -------- (None) > --- PROPULSION (3) --- (None) > --- UTILITY (3) ------ Small Storage Unit > --- WEAPON (2) ------- Assault Rifle > --- INVENTORY (8) ---- Ion Engine Light Ion Engine Scrap Suit Light Armor Plating Grenade Launcher Mining Laser Peak State ------------ > --- POWER ------------ Light Nuclear Core > --- PROPULSION ------- Light Treads Light Treads > --- UTILITY ---------- Small Storage Unit > --- WEAPON ----------- Assault Rifle Light Assault Rifle > --- INVENTORY -------- Ion Engine Light Ion Engine Compact Wheel Light Armor Plating Assault Rifle Grenade Launcher Mining Laser [Rating: 8] Favorites ----------- Power Ion Engine Engine Ion Engine Power Core Light Nuclear Core Propulsion Light Treads Treads Light Treads Leg Aluminum Leg Wheel Compact Wheel Utility Small Storage Unit Storage Small Storage Unit Weapon Assault Rifle Ballistic Gun Assault Rifle Build | -11 -10 -10 -9 ------- Run | Yrd Mat Min Mat Slots Evolved 2 | . . . 2 Power . | . . . . Propulsion 1 | . . . 1 Utility 1 | . . . 1 Weapon . | . . . . Parts Attached 5 | 2 1 1 1 Power 1 | . 1 . . Engine . | . . . . Core 1 | . 1 . . Reactor . | . . . . Propulsion 3 | 2 . 1 . Treads 2 | 2 . . . Leg . | . . . . Wheel 1 | . . 1 . Hover . | . . . . Flight . | . . . . Utility . | . . . . Device . | . . . . Storage . | . . . . Processor . | . . . . Hackware . | . . . . Protection . | . . . . Artifact . | . . . . Weapon 1 | . . . 1 Energy Gun . | . . . . Energy Cannon . | . . . . Ballistic Gun 1 | . . . 1 Ballistic Cannon . | . . . . Launcher . | . . . . Special Weapon . | . . . . Impact Weapon . | . . . . Slashing Weapon . | . . . . Piercing Weapon . | . . . . Special Melee Weapon . | . . . . Unidentified Prototypes . | . . . . Parts Lost 6 | . . 2 4 Power 1 | . . . 1 Propulsion 3 | . . 2 1 Utility . | . . . . Weapon 2 | . . . 2 Highest Loss Streak 4 | . . 2 4 To Critical Strikes . | . . . . Average Backups 6 | 6 6 6 6 Power 1 | 1 1 2 2 Propulsion 3 | 4 2 . . Utility . | . . 1 2 Weapon 2 | 1 2 3 2 Tool/Special . | . . . . Unused Backups 14 | 4 3 . 7 Power 2 | 1 . . 1 Propulsion 3 | . 3 . . Utility 3 | 1 . . 2 Weapon 6 | 2 . . 4 Tool/Special . | . . . . Average Slot Usage (%) 77 | . 85 75 48 Engine 6 | . 11 . . Core 6 | . 2 14 6 Treads 18 | . 28 9 . Wheel 4 | . . 8 11 Storage 13 | . 14 14 11 Ballistic Gun 27 | . 28 28 20 Peak Build Rating 8 | 6 8 8 8 Average Rating 6 | 6 6 7 6 On Entrance 7 | 6 6 8 8 Naked Turns . | . . . . Heaviest Build 13 | 13 13 13 13 Greatest Support 40 | 40 40 40 16 Greatest Overweight (x) 4 | . . 4 . Average Overweight (x) . | . . . . Largest Inventory Capacity 8 | 8 8 8 8 Average Capacity 8 | 8 8 8 8 Most Carried 8 | 7 8 8 8 Average Carried 6 | 6 6 6 7 Final Capacity 8 | 8 8 8 8 Final Carried 8 | 7 7 8 7 Class Distribution -------------------- 100% | Mutant Dominant Class ---------------- Mutant | -10/Materials Mutant | -10/Mines Mutant | -9/Materials Resources | -11 -10 -10 -9 ----------- Run | Yrd Mat Min Mat Matter Collected 532 | 328 154 40 10 Remotely . | . . . . Salvage Created 727 | 202 386 49 90 Parts 43 | 15 15 1 12 Haulers Intercepted . | . . . . Recyclers Shooed . | . . . . Parts Field Recycled . | . . . . Retrieved Matter . | . . . . Parts Self-Destructed . | . . . . Prevented . | . . . . Kills | -11 -10 -10 -9 ------- Run | Yrd Mat Min Mat Combat Hostiles Destroyed 16 | . 9 1 6 Guns 16 | . 9 1 6 Classes Destroyed 4 | 2 1 . 1 Tunneler 6 | 6 . . . Recycler 1 | 1 . . . Swarmer 6 | . . . 6 Grunt 10 | . 9 1 . Best Kill Streak 6 | 3 2 1 6 Combat Bots Only 6 | . 2 1 6 Max Kills in Single Turn 1 | 1 1 1 1 Gunslinging . | . . . . Exploded . | . . . . Melee . | . . . . Uniques/NPCs Destroyed . | . . . . Combat | -11 -10 -10 -9 -------- Run | Yrd Mat Min Mat Hostile Shots Fired 108 | . 47 13 48 Missed 30 | . 12 3 15 Hits 78 | . 35 10 33 Projectile 78 | . 35 10 33 Critical Strikes 2 | . 2 . . Damage Taken 872 | . 457 151 264 Core 165 | . 54 30 81 Absorbed by Shields . | . . . . Core Remaining (%) 83 | 100 . 66 . Volleys Fired 92 | 27 36 10 19 Largest 2 | 2 2 2 2 Hottest 40 | 40 40 40 40 Shots Fired 173 | 54 72 20 27 Gun 173 | 54 72 20 27 Cannon . | . . . . Launcher . | . . . . Special . | . . . . Kinetic 173 | 54 72 20 27 Thermal . | . . . . Explosive . | . . . . Electromagnetic . | . . . . Robot Hit Streak 10 | 6 10 5 7 Robot Miss Streak 3 | 3 2 2 2 Penetration Max . | . . . . Secondary Targets 2 | . 1 . 1 Max Gunslinging Chain 1 | . 1 . 1 Shots Hit Robots 105 | 30 45 12 18 Core Hits 40 | 11 19 4 6 Critical Kills 1 | . 1 . . Critical Parts Destroyed 1 | . 1 . . Critical Strikes 2 | . 2 . . Destroy 2 | . 2 . . Melee Attacks . | . . . . Impact . | . . . . Slashing . | . . . . Piercing . | . . . . Sneak Attacks . | . . . . Combat Hostiles . | . . . . Follow-up Attacks . | . . . . Damage Inflicted 1094 | 302 483 111 198 Guns 1094 | 302 483 111 198 Cannons . | . . . . Explosions . | . . . . Melee . | . . . . Ramming . | . . . . Kinetic 1094 | 302 483 111 198 Thermal . | . . . . Explosive . | . . . . Electromagnetic . | . . . . Impact . | . . . . Slashing . | . . . . Piercing . | . . . . Highest Corruption . | . . . . Average Corruption . | . . . . Corruption Purged . | . . . . Corruption Blocked . | . . . . Overload Shots . | . . . . Overflow Damage . | . . . . Projectiles . | . . . . Explosions . | . . . . Melee . | . . . . Knockbacks . | . . . . Impact . | . . . . Kinetic . | . . . . Secondary . | . . . . Self-Inflicted Damage . | . . . . Shots . | . . . . Rammed . | . . . . Targets Rammed . | . . . . Kicked . | . . . . Crushed . | . . . . Highest Temperature 36 | . 36 26 . Average Temperature 12 | . 12 11 . Received Heat Transfer 390 | . 300 90 . Siege Activations . | . . . . Martial Activations . | . . . . Shielding Activations . | . . . . Robots Disrupted . | . . . . Combat Hostiles . | . . . . Robots Corrupted . | . . . . Combat Hostiles . | . . . . Parts Fried . | . . . . Impact Corruptions . | . . . . Robots Melted . | . . . . Combat Hostiles . | . . . . Parts Melted . | . . . . Heat Transferred . | . . . . Parts Sabotaged . | . . . . Parts Stolen . | . . . . Parts Stripped . | . . . . Power Chain Reactions . | . . . . Alert | -11 -10 -10 -9 ------- Run | Yrd Mat Min Mat Maximum Alert Level . | . . . . Low Security (%) 100 | 100 100 100 100 Level 1 . | . . . . Level 2 . | . . . . Level 3 . | . . . . Level 4 . | . . . . Level 5 . | . . . . High Security . | . . . . Max Security . | . . . . Peak Influence 153 | 5 153 56 115 Initial 56 | . . 56 . Average 12 | . 44 16 29 Influence Increases 538 | 35 303 45 155 Destroy 0b10 Robot/C 320 | . 180 20 120 Destroy 0b10 Robot/NC 35 | 35 . . . Destroy Leader 70 | . 40 10 20 Successful Hack 8 | . 8 . . Lose Combat Pursuer 105 | . 75 15 15 Influence Decreases 423 | 35 158 190 40 Entered New Map 89 | . . 89 . Time Decay 308 | 35 158 95 20 Lost Part 26 | . . 6 20 Squads Dispatched 1 | . 1 . . Investigation 1 | . 1 . . Extermination . | . . . . Reinforcement . | . . . . Assault . | . . . . Garrison . | . . . . Intercept . | . . . . Searches Triggered . | . . . . Construction Impeded . | . . . . Haulers Reinforced . | . . . . Active Scanning Responses . | . . . . Cargo Convoy Interrupts . | . . . . Stealth | -11 -10 -10 -9 --------- Run | Yrd Mat Min Mat Distress Signals . | . . . . Communications Jammed . | . . . . Distress Signals . | . . . . Times Spotted 22 | . 13 2 7 Peak Tracking Total 7 | . 4 2 7 Tactical Retreats 5 | . 3 1 1 Traps | -11 -10 -10 -9 ------- Run | Yrd Mat Min Mat Traps Triggered 1 | . 1 . . Indirectly . | . . . . Trap Hack Attempts . | . . . . Triggered . | . . . . Disarmed . | . . . . Reprogrammed . | . . . . Reused . | . . . . Traps Extracted . | . . . . Installed . | . . . . Triggered . | . . . . Machines | -11 -10 -10 -9 ---------- Run | Yrd Mat Min Mat Machines Disabled . | . . . . Max in Single Turn . | . . . . Machines Repaired . | . . . . Machines Dismantled . | . . . . Machines Sabotaged . | . . . . Overloaded Fab Kills . | . . . . Hacking | -11 -10 -10 -9 --------- Run | Yrd Mat Min Mat Machines Accessed 3 | . 3 . . Terminals 3 | . 3 . . Fabricators . | . . . . Repair Stations . | . . . . Recycling Units . | . . . . Scanalyzers . | . . . . Garrison Access . | . . . . Total Hacks 7 | . 7 . . Successful 3 | . 3 . . Failed 4 | . 4 . . Catastrophic 1 | . 1 . . Database Lockouts . | . . . . Manual 7 | . 7 . . Terminals 7 | . 7 . . Fabricators . | . . . . Repair Stations . | . . . . Recycling Units . | . . . . Scanalyzers . | . . . . Garrison Access . | . . . . Terminal Hacks . | . . . . Fabricator Hacks . | . . . . Repair Station Hacks . | . . . . Recycling Unit Hacks . | . . . . Scanalyzer . | . . . . Garrison Access Hacks . | . . . . Unauthorized Hacks 3 | . 3 . . Terminals 3 | . 3 . . Botnet 3 | . 3 . . Fabricators . | . . . . Repair Stations . | . . . . Recycling Units . | . . . . Scanalyzers . | . . . . Garrison Access . | . . . . Data Cores Recovered . | . . . . Used . | . . . . Hacking Detections 3 | . 3 . . Full Trace Events . | . . . . Feedback Events . | . . . . Feedback Blocked . | . . . . Robot Schematics Acquired . | . . . . Robots Built . | . . . . Authchips . | . . . . Time . | . . . . Total Robot Build Rating . | . . . . Part Schematics Acquired . | . . . . Parts Built . | . . . . Authchips . | . . . . Time . | . . . . Total Part Build Rating . | . . . . Parts Repaired . | . . . . Time . | . . . . Parts Recycled . | . . . . Recycled Matter . | . . . . Retrieved Matter . | . . . . Retrieved Components . | . . . . Parts Scanalyzed . | . . . . Part Schematics Acquired . | . . . . Parts Damaged . | . . . . Bothacking | -11 -10 -10 -9 ------------ Run | Yrd Mat Min Mat Used RIF Installer . | . . . . Robots Hacked . | . . . . Non-combat . | . . . . Combat . | . . . . Robot Hacks Applied . | . . . . Relay Couplers Released . | . . . . Fabnet Peak Effective % . | . . . . Robots Rewired . | . . . . Allies Hacked . | . . . . Hacks Repelled . | . . . . Allies | -11 -10 -10 -9 -------- Run | Yrd Mat Min Mat Total Allies . | . . . . Largest Group . | . . . . Highest-Rated Group . | . . . . Highest-Rated Ally . | . . . . Total Orders . | . . . . Ally Attacks . | . . . . Total Damage . | . . . . Kills . | . . . . Allies Corrupted . | . . . . Allies Melted . | . . . . Intel | -11 -10 -10 -9 ------- Run | Yrd Mat Min Mat Active Infowar (turns) . | . . . . Robot Analysis Total . | . . . . Derelict Logs Recovered 1 | . . 1 . Drone Launches . | . . . . Drone Recoveries . | . . . . Exploration | -11 -10 -10 -9 ------------- Run | Yrd Mat Min Mat Turns Passed 2447 | 1514 497 328 108 Spaces Moved 943 | 415 225 264 39 Core 1 | . . 1 . Treads 687 | 408 225 54 . Legs 7 | 7 . . . Wheels 248 | . . 209 39 Hover . | . . . . Flight . | . . . . Fastest Speed 100 | 120 160 100 100 Average Speed 144 | 159 160 112 100 Slowest Speed 250 | 160 160 250 100 Overloaded Moves . | . . . . Propulsion Burnouts . | . . . . Robots Hopped . | . . . . Potential Cave-ins . | . . . . Cave-ins Triggered . | . . . . Exploration Rate (%) 31 | 20 40 58 7 Regions Visited 3 Branch Regions 1 Pre-discovered Areas 1 | . . 1 . Known Exits Taken . | . . . . Unknown Exits Taken 3 | 1 1 1 . Scrap Searched . | . . . . Spaces Dug . | . . . . Terrain Destroyed . | . . . . Melee . | . . . . Projectile . | . . . . AOE . | . . . . Terrain Rammed . | . . . . Walls Destroyed . | . . . . Machines Disabled . | . . . . Actions | -11 -10 -10 -9 --------- Run | Yrd Mat Min Mat Total 1875 | 1218 299 276 82 Wait 829 | 774 31 1 23 Move 940 | 414 224 263 39 Hop . | . . . . Pick Up 5 | 1 3 1 . Fast Attach . | . . . . Attach 2 | . . 1 1 Detach . | . . . . Swap 3 | 2 1 . . Drop 4 | . 4 . . Fire 92 | 27 36 10 19 Melee . | . . . . Ram . | . . . . Kick . | . . . . Crush . | . . . . Escape Stasis . | . . . . Rewire . | . . . . Trap . | . . . . Miscellaneous . | . . . . Route ------- -11/Scrapyard -10/Materials (discovered 2 exits: [*Min] / [*Sub]) -10/Mines -9/Materials History --------- Turn | Location | Event 1 | -11/Scrapyard | Discovered new exit (range 3) 1515 | -11/Scrapyard | Entered Materials 1516 | -10/Materials | Build established: Mutant 1833 | -10/Materials | Discovered new exit (range 8) 1982 | -10/Materials | Discovered new exit (range 7) 2012 | -10/Materials | Entered Mines 2050 | -10/Mines | Met a Derelict bent on vengeance 2092 | -10/Mines | Assembled infested the area 2247 | -10/Mines | Found a Scrap Suit stashed away for nefarious purposes 2249 | -10/Mines | Found Scrap Suit 2281 | -10/Mines | Learned location of Zion (-6) 2333 | -10/Mines | Discovered new exit (range 7) 2340 | -10/Mines | Entered Materials 2340 | -9/Materials | Evolved 2 slots: Propulsion x1, Utility x1 2448 | -9/Materials | Self-destructed Last Messages --------------- 02408_ U-05 Engineer works on Processing Tank. 02409_ S-10 Pest destroyed. 02409_ Switching to secondary target: S-10 Pest. 02412_ S-10 Pest destroyed. 02413_ Acquired 10 matter. 02414_ U-05 Engineer works on Processing Tank. 02415_ S-10 Pest destroyed. 02419_ U-05 Engineer works on Processing Tank. 02423_ S-10 Pest destroyed. 02425_ U-05 Engineer works on Processing Tank. 02426_ Lgt. Assault Rifle destroyed. 02426_ S-10 Pest destroyed. 02430_ U-05 Engineer works on Processing Tank. 02440_ Com. Wheel destroyed. 02441_ U-05 Engineer works on Processing Tank. 02442_ Destroyed Lgt. Ion Engine. 02446_ S-10 Pest destroyed. 02447_ U-05 Engineer works on Processing Tank. 02447_ R-06 Scavenger collects Lgt. Ion Engine. Map ----- +----------------------------------------------------+ | ?????????????????????????????????????????????????? | | ?????????????????????????????????????????????????? | | ?????????????????????????????????????????????????? | | ?????????????????????????????????????????????????? | | ?????????????????????????????????????????????????? | | ?????????????????????????????????????????????????? | | ?????????????????????????????????????????????????? | | ?????????????????????????????????????????????????? | | ?????????????????????????????????????????????????? | | ?????????????????????????????????????????????????? | | ???????????????????????????#?????????????????????? | | ??????????????????????????? ????????????????????? | | ??????????????????????????? ????????????????????? | | ?????????????????????????##+##???????????????????? | | ????????????????????????# #??????????????????? | | ????????????????????????# a #??????????????????? | | ????????????????????????# k #??????????????????? | | ????????????????????????#